bitfinex/quotes_SOLUSD_20240930
["timestamp","ask_amount","ask_price","bid_price","bid_amount"]
[1727726556525,6.4217,155.72,155.68,16.4146]
[1727726556841,31.1466,155.77,155.67,16.0586]
[1727726556842,6.4223,155.71,155.67,16.0586]
[1727726557042,6.4226,155.7,155.65,12.4282]
[1727726557541,6.423,155.69,155.64,31.2885]
[1727726557935,6.423,155.69,155.64,37.7135]
[1727726558350,6.4226,155.7,155.64,37.7135]
[1727726560437,6.4226,155.7,155.64,22.4875]
[1727726560743,16.0523,155.75,155.64,16.0625]
[1727726560744,6.4234,155.68,155.64,16.0625]
[1727726561456,6.4234,155.68,155.64,17.34730912]
[1727726561627,6.424,155.67,155.62,20.0]
[1727726561946,16.0543,155.73,155.62,20.0]
[1727726561947,6.4234,155.68,155.62,20.0]
[1727726562659,6.4234,155.68,155.63,1.28482307]
[1727726562944,6.4234,155.68,155.62,20.0]
[1727726563154,6.4234,155.68,155.63,6.4254]
[1727726564335,15.0357,155.7,155.61,22.6356]
[1727726564527,6.4243,155.66,155.61,29.0618]
[1727726564935,15.0357,155.7,155.61,22.6356]
[1727726565246,6.4238,155.67,155.62,6.4257]
[1727726571053,6.4246,155.65,155.61,22.6356]
[1727726572057,6.4246,155.65,155.61,16.0656]
[1727726574250,6.4246,155.65,155.61,23.77675939]
[1727726574646,6.4246,155.65,155.61,16.0656]
[1727726574847,6.4258,155.63,155.58,22.4955]
[1727726575237,0.899638,155.64,155.58,22.4955]
[1727726575453,6.4259,155.62,155.58,22.4955]
[1727726575640,6.4264,155.61,155.56,22.7337]
[1727726576644,0.899638,155.6,155.55,22.5001]
[1727726576843,16.4753,155.63,155.55,22.5001]
[1727726576844,0.899638,155.62,155.55,22.5001]
[1727726578144,6.4272,155.59,155.55,22.5001]
[1727726578758,6.4272,155.59,155.55,16.0714]
[1727726580145,6.4268,155.6,155.55,22.5001]
[1727726582965,22.9011,155.63,155.57,16.0696]
[1727726583266,22.9011,155.63,155.57,22.4974]
[1727726583267,16.4753,155.63,155.57,22.4974]
[1727726583455,6.4264,155.61,155.57,16.0696]
[1727726583865,6.4264,155.61,155.57,23.78265701]
[1727726584447,16.0621,155.65,155.57,23.78265701]
[1727726584651,6.4259,155.62,155.58,6.4274]
[1727726585250,6.4259,155.62,155.58,7.71280161]
[1727726585668,23.776884,155.64,155.58,7.71280161]
[1727726585669,6.425,155.64,155.6,6.4266]
[1727726586474,6.4255,155.63,155.59,22.4946]
[1727726587766,23.776884,155.66,155.59,16.0675]
[1727726587978,6.4259,155.62,155.59,16.0675]
[1727726588670,23.776884,155.66,155.57,6.4278]
[1727726588671,7.325938,155.61,155.57,6.4278]
[1727726588876,39.838184,155.66,155.53,6.0275]
[1727726588877,0.899638,155.6,155.53,6.0275]
[1727726589073,6.4272,155.59,155.54,6.4291]
[1727726589573,6.4272,155.59,155.55,6.4287]
[1727726589772,6.4277,155.58,155.54,6.4291]
[1727726590753,23.776884,155.61,155.53,16.0734]
[1727726590984,6.4284,155.56,155.53,16.0734]
[1727726591672,6.4281,155.57,155.53,16.0734]
[1727726594566,6.4281,155.57,155.53,22.5027]
[1727726595359,6.4275,155.58,155.54,7.71495411]
[1727726595684,16.2498,155.61,155.54,7.71495411]
[1727726595685,6.4272,155.59,155.54,7.71495411]
[1727726596559,6.4272,155.59,155.54,6.4292]
[1727726597390,16.2498,155.61,155.54,6.4292]
[1727726597558,6.4276,155.58,155.54,6.4292]
[1727726597760,23.776884,155.64,155.55,17.35715817]
[1727726598064,6.4264,155.61,155.56,6.428]
[1727726598981,6.4264,155.61,155.56,7.71353514]
[1727726599168,6.4264,155.61,155.56,6.428]
[1727726599370,6.4264,155.61,155.57,6.4276]
[1727726599570,6.4259,155.62,155.58,6.4275]
[1727726600764,6.4259,155.62,155.58,7.71286406]
[1727726601080,6.4255,155.63,155.59,6.4271]
[1727726601278,6.4252,155.64,155.59,6.4271]
[1727726602277,6.4252,155.64,155.6,6.4267]
[1727726602481,6.4247,155.65,155.6,6.4267]
[1727726602669,6.4247,155.65,155.6,7.7118143]
[1727726602866,6.4247,155.65,155.6,6.4267]
[1727726603295,6.4247,155.65,155.6,7.71182613]
[1727726603467,6.4251,155.64,155.6,6.4267]
[1727726605885,0.899638,155.67,155.59,16.0672]
[1727726606080,6.4255,155.63,155.59,22.4942]
[1727726607371,0.899638,155.62,155.57,22.2358]
[1727726607573,23.776884,155.64,155.57,6.4278]
[1727726607779,0.899638,155.65,155.57,6.4278]
[1727726607780,6.4265,155.61,155.57,6.4278]
[1727726608977,6.4265,155.61,155.56,28.5845]
[1727726609882,23.776884,155.67,155.56,28.5845]
[1727726610076,6.4267,155.6,155.56,28.5845]
[1727726611393,6.4264,155.61,155.57,7.71311118]
[1727726611565,6.4264,155.61,155.57,6.4276]
[1727726611984,6.4264,155.61,155.57,7.7130603]
[1727726614293,6.4264,155.61,155.57,6.4276]
[1727726614908,15.0024,155.68,155.61,16.0657]
[1727726615195,6.4246,155.66,155.61,22.4919]
[1727726615391,6.4239,155.67,155.61,16.0657]
[1727726615576,6.4239,155.67,155.62,6.4258]
[1727726616194,6.4243,155.66,155.61,22.4919]
[1727726617794,15.0024,155.68,155.61,22.4919]
[1727726618098,6.4254,155.64,155.59,22.5783]
[1727726618493,23.776884,155.67,155.59,16.1512]
[1727726618675,6.426,155.62,155.58,22.4961]
[1727726618883,0.899638,155.61,155.58,22.4961]
[1727726619072,0.899638,155.61,155.58,16.0686]
[1727726619497,6.426,155.62,155.58,16.0686]
[1727726619885,6.426,155.62,155.58,17.35397981]
[1727726620072,6.426,155.62,155.58,17.3539811]
[1727726620277,6.426,155.62,155.58,22.4961]
[1727726624784,6.4263,155.61,155.58,16.0686]
[1727726635411,6.4263,155.61,155.57,6.4279]
[1727726637593,6.4267,155.6,155.56,15.94285841]
[1727726637899,6.4264,155.61,155.56,17.2283172]
[1727726639208,6.4264,155.61,155.57,6.4278]
[1727726639512,6.4264,155.61,155.57,9.85635841]
[1727726639711,7.326338,155.6,155.57,3.42855841]
[1727726639914,6.4264,155.61,155.56,12.5145]
[1727726640206,6.4264,155.61,155.56,13.80001022]
[1727726640587,6.4264,155.61,155.57,9.85778088]
[1727726642125,6.4268,155.6,155.56,12.5144]
[1727726642799,6.4264,155.61,155.56,13.79990323]
[1727726643103,6.4264,155.61,155.57,10.65533149]
[1727726643301,6.4264,155.61,155.58,7.22336475]
[1727726643511,6.4267,155.6,155.59,7.22336475]
[1727726643694,23.776884,155.63,155.52,17.88571217]
[1727726643695,6.4274,155.59,155.54,14.40174271]
[1727726643891,6.4274,155.59,155.55,17.08912619]
[1727726644096,6.4274,155.59,155.56,7.22681058]
[1727726644314,6.4274,155.59,155.57,7.22681058]
[1727726644613,6.4274,155.59,155.55,6.4287]
[1727726644801,6.4274,155.59,155.56,7.0949647]
[1727726645002,6.4274,155.59,155.57,7.0949647]
[1727726645196,6.4274,155.59,155.55,6.4287]
[1727726645400,6.4274,155.59,155.56,7.09420089]
[1727726645603,6.4274,155.59,155.55,9.86167379]
[1727726647803,6.4274,155.59,155.55,3.43297379]
[1727726648222,6.4274,155.59,155.54,23.78737217]
[1727726648718,6.4274,155.59,155.55,6.4286]
[1727726649120,6.4274,155.59,155.55,9.85481045]
[1727726649814,16.063,155.64,155.56,17.35610449]
[1727726650113,6.426,155.62,155.58,6.4272]
[1727726650290,6.426,155.62,155.58,7.71257912]
[1727726651000,6.4252,155.64,155.6,6.4267]
[1727726651913,6.4255,155.63,155.59,6.4269]
[1727726654013,6.4249,155.65,155.61,6.4263]
[1727726655023,6.4249,155.65,155.6,23.77805373]
[1727726655227,6.4249,155.65,155.6,22.4928]
[1727726655516,6.4249,155.65,155.61,7.71135418]
[1727726655708,15.0024,155.68,155.61,7.71135418]
[1727726655912,6.4248,155.65,155.61,7.71135418]
[1727726656599,6.4248,155.65,155.61,6.4262]
[1727726657200,23.776884,155.67,155.6,22.493]
[1727726657201,6.4251,155.64,155.6,22.493]
[1727726660425,23.776884,155.67,155.59,3.42242601]
[1727726660607,31.0613,155.68,155.58,6.2446]
[1727726660608,23.776884,155.65,155.58,6.2446]
[1727726661314,23.776884,155.65,155.58,9.66773922]
[1727726661516,6.4256,155.63,155.58,12.672]
[1727726661731,6.4256,155.63,155.58,16.09513922]
[1727726663110,6.4256,155.63,155.58,9.85053922]
[1727726663315,6.4263,155.61,155.56,6.4281]
[1727726663718,6.4263,155.61,155.56,9.85285952]
[1727726664025,6.4263,155.61,155.56,6.4281]
[1727726664221,6.4263,155.61,155.56,9.85285952]
[1727726664419,6.4263,155.61,155.56,6.4281]
[1727726664722,6.4263,155.61,155.56,9.85285952]
[1727726664923,6.4263,155.61,155.56,6.4281]
[1727726665103,6.4263,155.61,155.56,9.85285952]
[1727726665302,6.4263,155.61,155.56,6.4281]
[1727726665512,6.4263,155.61,155.56,9.85285952]
[1727726665742,6.4263,155.61,155.56,6.4281]
[1727726665907,6.4263,155.61,155.56,9.85285952]
[1727726666107,6.4263,155.61,155.56,6.4281]
[1727726666315,6.4263,155.61,155.56,9.85285952]
[1727726667610,6.4263,155.61,155.56,13.28040761]
[1727726667812,6.4263,155.61,155.56,9.85564809]
[1727726668136,6.4259,155.62,155.57,7.71345817]
[1727726668316,23.776884,155.65,155.57,7.71345817]
[1727726668317,6.4255,155.63,155.58,6.4275]
[1727726668623,22.7836123,155.66,155.59,6.4271]
[1727726668624,6.4251,155.64,155.59,6.4271]
[1727726668833,6.4251,155.64,155.59,7.71241518]
[1727726669527,6.4251,155.64,155.59,6.4271]
[1727726670521,6.4255,155.63,155.58,22.4961]
[1727726678630,6.4259,155.62,155.58,22.4961]
[1727726679139,6.4259,155.62,155.55,19.40864738]
[1727726679140,6.4271,155.59,155.55,22.4997]
[1727726679443,6.4271,155.59,155.55,16.0711]
[1727726682835,6.4275,155.58,155.54,28.8973]
[1727726683938,6.4275,155.58,155.54,6.4291]
[1727726685816,7.327638,155.57,155.52,16.0742]
[1727726686026,7.328038,155.56,155.52,16.0742]
[1727726686227,6.4284,155.56,155.52,16.0742]
[1727726688120,6.4284,155.56,155.52,22.5041]
[1727726688650,6.4284,155.56,155.52,16.0742]
[1727726689520,0.899638,155.6,155.52,16.0742]
[1727726689726,6.4288,155.55,155.52,16.0742]
[1727726691024,0.899638,155.54,155.52,16.0742]
[1727726691221,6.4288,155.55,155.51,6.4303]
[1727726692640,6.4296,155.53,155.49,22.5086]
[1727726692825,7.329738,155.52,155.48,6.4314]
[1727726693143,6.4301,155.52,155.48,6.4314]
[1727726694435,6.4297,155.53,155.48,6.4314]
[1727726696355,6.4297,155.53,155.49,6.4312]
[1727726699633,23.776884,155.55,155.49,1.28618751]
[1727726699862,6.4293,155.54,155.5,6.4308]
[1727726700742,6.4293,155.54,155.49,7.71728751]
[1727726701350,6.4288,155.55,155.5,16.0766]
[1727726701558,6.4288,155.55,155.51,6.4301]
[1727726701764,6.4288,155.55,155.51,17.87802347]
[1727726702751,6.4281,155.57,155.52,16.0747]
[1727726703275,15.3448,155.6,155.53,1.28584896]
[1727726703453,21.7716,155.6,155.56,6.4283]
[1727726704264,6.4268,155.6,155.56,6.4283]
[1727726705962,6.4264,155.61,155.56,6.4283]
[1727726706145,6.4264,155.61,155.57,6.4278]
[1727726706346,16.0612,155.66,155.57,6.4278]
[1727726706347,6.6464,155.67,155.59,11.44792347]
[1727726706646,15.2919,155.69,155.62,6.4258]
[1727726708060,6.4239,155.67,155.62,6.4258]
[1727726710862,30.200384,155.68,155.63,6.4253]
[1727726712166,6.4238,155.67,155.63,6.4253]
[1727726719267,23.776884,155.68,155.62,1.28497314]
[1727726719471,30.200384,155.68,155.64,6.425]
[1727726719948,30.200384,155.68,155.62,1.28497314]
[1727726720242,30.200384,155.68,155.63,6.4253]
[1727726723171,6.4239,155.67,155.63,6.4253]
[1727726736283,0.899638,155.67,155.58,38.3976]
[1727726736484,6.4256,155.63,155.59,6.4271]
[1727726738390,23.776884,155.68,155.6,16.0665]
[1727726738694,23.776884,155.68,155.61,6.426]
[1727726738695,6.4247,155.65,155.61,6.426]
[1727726740973,6.4247,155.65,155.6,16.0665]
[1727726740974,0.899638,155.67,155.6,16.0665]
[1727726741177,6.4251,155.64,155.6,22.4931]
[1727726742574,6.4255,155.63,155.6,16.0665]
[1727726742774,6.4259,155.62,155.58,28.7567]
[1727726744580,6.4263,155.61,155.58,22.3293]
[1727726744803,6.4263,155.61,155.58,6.2887]
[1727726745098,6.4263,155.61,155.57,22.4971]
[1727726750375,6.4267,155.6,155.56,6.4282]
[1727726754707,0.899638,155.63,155.54,38.4749]
[1727726754999,6.4272,155.59,155.55,6.4287]
[1727726759807,23.776884,155.61,155.51,16.0756]
[1727726760112,6.4288,155.55,155.51,22.5057]
[1727726760696,6.4293,155.54,155.51,16.0756]
[1727726761602,6.4288,155.55,155.51,23.79180627]
[1727726762413,6.4288,155.55,155.51,22.5059]
[1727726763219,6.4288,155.55,155.51,23.7918201]
[1727726763924,6.4288,155.55,155.51,22.5059]
[1727726764415,6.4278,155.58,155.54,6.4291]
[1727726764729,6.4266,155.61,155.57,6.4278]
[1727726768826,15.197,155.63,155.58,1.28542128]
[1727726769009,6.4255,155.63,155.59,6.4271]
[1727726770016,6.4255,155.63,155.58,7.71265336]
[1727726771102,6.4251,155.64,155.59,6.4269]
[1727726771303,6.4251,155.64,155.6,1.28520727]
[1727726774120,16.0592,155.68,155.6,1.28520727]
[1727726774430,16.0592,155.68,155.6,7.71150727]
[1727726774431,6.4247,155.65,155.6,7.71150727]
[1727726775014,6.4247,155.65,155.6,7.71170727]
[1727726775714,6.4251,155.64,155.6,7.71170727]
[1727726776325,6.4251,155.64,155.59,22.4943]
[1727726778017,6.4251,155.64,155.6,1.28512288]
[1727726778517,6.4251,155.64,155.6,7.71162288]
[1727726780514,6.4251,155.64,155.6,6.4265]
[1727726780923,6.4251,155.64,155.6,7.71162279]
[1727726783737,16.0592,155.68,155.59,16.0673]
[1727726783934,6.4246,155.65,155.61,6.426]
[1727726784340,6.4252,155.64,155.6,6.4267]
[1727726785741,16.0592,155.68,155.62,6.4258]
[1727726785742,6.4243,155.66,155.62,6.4258]
[1727726786637,48.4699,155.71,155.63,17.34818022]
[1727726786638,32.415,155.71,155.63,17.34818022]
[1727726787044,6.4231,155.69,155.64,6.4246]
[1727726787233,6.4231,155.69,155.65,1.28474444]
[1727726787547,6.4237,155.68,155.64,6.4246]
[1727726787745,6.4237,155.68,155.63,22.4886]
[1727726788247,32.415,155.71,155.63,22.4886]
[1727726788453,6.424,155.67,155.63,22.4886]
[1727726789447,6.424,155.67,155.63,23.77348137]
[1727726791043,6.4234,155.68,155.64,6.4249]
[1727726791226,6.4234,155.68,155.65,1.28478163]
[1727726792758,23.776884,155.7,155.65,1.28478163]
[1727726792956,6.4232,155.69,155.65,1.28478163]
[1727726793457,23.776884,155.7,155.65,1.28478163]
[1727726793754,6.4234,155.68,155.65,1.28478163]
[1727726794064,6.4234,155.68,155.64,17.87282347]
[1727726794554,16.0561,155.71,155.65,1.28473468]
[1727726794851,6.423,155.69,155.65,1.28473468]
[1727726795225,6.4245,155.66,155.62,12.8387]
[1727726795744,6.4239,155.67,155.63,6.4254]
[1727726796142,6.4239,155.67,155.63,7.71028125]
[1727726796657,16.0577,155.69,155.62,6.413]
[1727726796959,23.776884,155.68,155.62,6.413]
[1727726798159,6.4242,155.66,155.62,12.8387]
[1727726808470,23.776884,155.68,155.62,7.69795474]
[1727726808656,6.4247,155.65,155.62,6.413]
[1727726809745,6.4256,155.63,155.6,15.2534]
[1727726809951,6.4259,155.62,155.58,28.813]
[1727726810151,23.776884,155.65,155.58,22.3857]
[1727726810451,6.4256,155.63,155.59,6.4271]
[1727726810963,6.4248,155.65,155.61,6.4259]
[1727726811264,8.4243,155.66,155.62,7.7105929]
[1727726811466,8.4243,155.66,155.62,6.4256]
[1727726811647,2.0,155.66,155.62,16.0642]
[1727726811846,2.0,155.66,155.63,1.28489381]
[1727726812149,2.0,155.66,155.63,7.71029381]
[1727726812764,2.0,155.66,155.63,6.4254]
[1727726812947,2.0,155.66,155.64,12.73279523]
[1727726813146,2.0,155.66,155.65,6.4246]
[1727726815172,2.0,155.66,155.64,35.22009523]
[1727726817565,2.0,155.66,155.64,33.93522347]
[1727726817764,2.0,155.66,155.65,1.28469348]
[1727726818971,2.0,155.66,155.64,33.93522347]
[1727726820460,2.0,155.66,155.64,16.0624]
[1727726820661,8.4245,155.66,155.62,22.6779]
[1727726820974,2.0,155.66,155.61,16.0651]
[1727726821349,6.4247,155.65,155.61,22.4913]
[1727726821551,8.4243,155.66,155.62,7.7107882]
[1727726821852,2.0,155.66,155.63,17.87322347]
[1727726822055,2.0,155.66,155.64,7.70978577]
[1727726822677,2.0,155.66,155.64,6.425]
[1727726822858,2.0,155.66,155.65,1.28475323]
[1727726824052,2.0,155.66,155.65,7.70935323]
[1727726824278,2.0,155.66,155.65,6.4246]
[1727726825651,2.0,155.66,155.63,27.51142347]
[1727726825867,2.0,155.66,155.64,6.4249]
[1727726826469,2.0,155.66,155.65,19.15720646]
[1727726826982,2.0,155.66,155.65,17.87252347]
[1727726827359,2.0,155.66,155.65,45.47751796]
[1727726828407,6.4212,155.74,155.65,62.82980196]
[1727726828678,6.4206,155.75,155.71,6.4221]
[1727726830870,0.899638,155.78,155.7,11.44792347]
[1727726831076,6.4198,155.77,155.72,11.44792347]
[1727726831387,6.4203,155.76,155.72,11.44792347]
[1727726833884,6.4205,155.75,155.72,11.44792347]
[1727726835871,6.4209,155.74,155.71,16.055]
[1727726836190,6.4209,155.74,155.7,17.87042347]
[1727726836191,16.1775434,155.79,155.72,11.44792347]
[1727726836367,0.8476434,155.79,155.74,17.86872347]
[1727726836563,7.2666434,155.79,155.76,11.44792347]
[1727726836769,7.2666434,155.79,155.77,1.28372413]
[1727726837272,7.2666434,155.79,155.76,11.44792347]
[1727726837273,0.8476434,155.79,155.74,11.44792347]
[1727726837467,0.8476434,155.79,155.75,1.28378656]
[1727726837679,0.8476434,155.79,155.74,11.44792347]
[1727726838080,6.4198,155.77,155.74,11.44792347]
[1727726838274,6.4193,155.78,155.74,11.44792347]
[1727726838495,6.4193,155.78,155.75,1.28382902]
[1727726839003,0.8476434,155.79,155.74,11.44792347]
[1727726839298,0.8476434,155.79,155.76,1.28382757]
[1727726839596,6.4194,155.78,155.76,1.28382757]
[1727726839781,6.4194,155.78,155.74,17.86882347]
[1727726840607,6.4194,155.78,155.75,1.28384306]
[1727726844683,7.2666434,155.79,155.75,7.70404306]
[1727726845482,0.8476434,155.79,155.76,11.44792347]
[1727726845685,0.8476434,155.79,155.78,11.44792347]
[1727726846892,0.8476434,155.79,155.77,6.4194]
[1727726847097,0.8476434,155.79,155.76,17.86792347]
[1727726847422,7.2665434,155.79,155.77,1.28359588]
[1727726847707,0.8476434,155.79,155.77,1.28359588]
[1727726849700,0.8476434,155.79,155.76,17.86792347]
[1727726851293,0.8476434,155.79,155.77,7.70322735]
[1727726851497,0.8476434,155.79,155.76,17.86792347]
[1727726852209,0.8476434,155.79,155.78,17.86722347]
[1727726854388,0.8476434,155.79,155.78,6.4193]
[1727726854589,0.8476434,155.79,155.78,17.86722347]
[1727726854908,0.8476434,155.79,155.78,11.44792347]
[1727726855312,0.8476434,155.79,155.75,39.1256]
[1727726855619,0.8476434,155.79,155.74,6.4209]
[1727726856108,6.4193,155.78,155.73,17.86922347]
[1727726856707,6.4193,155.78,155.74,6.4209]
[1727726857011,6.4193,155.78,155.73,17.86922347]
[1727726858200,0.8476434,155.79,155.73,11.44792347]
[1727726858508,16.4242434,155.79,155.73,11.44792347]
[1727726858710,0.899638,155.78,155.73,11.44792347]
[1727726859493,16.4242434,155.79,155.73,11.44792347]
[1727726860207,6.4202,155.76,155.73,11.44792347]
[1727726861417,16.4242434,155.79,155.75,17.86822347]
[1727726861716,0.8476434,155.79,155.76,1.28376545]
[1727726862116,0.8476434,155.79,155.75,17.86822347]
[1727726862719,0.8476434,155.79,155.76,1.28373316]
[1727726862908,0.8476434,155.79,155.71,16.0553]
[1727726863100,6.4207,155.75,155.71,16.0553]
[1727726863299,15.8156,155.77,155.69,11.44792347]
[1727726863516,6.421,155.74,155.69,17.87072347]
[1727726863827,0.899638,155.76,155.69,11.44792347]
[1727726864034,6.4206,155.75,155.71,6.4221]
[1727726864321,6.4206,155.75,155.72,1.28410829]
[1727726866117,6.4206,155.75,155.71,6.4221]
[1727726867513,6.4206,155.75,155.7,6.4224]
[1727726867711,6.4211,155.74,155.69,6.4229]
[1727726871438,6.4214,155.73,155.69,6.4229]
[1727726872536,6.421,155.74,155.7,6.4225]
[1727726873446,6.4208,155.75,155.71,7.70622137]
[1727726874530,6.4208,155.75,155.71,6.422]
[1727726876233,6.4208,155.75,155.7,33.92642347]
[1727726879937,6.4208,155.75,155.7,22.4785]
[1727726880440,6.4211,155.74,155.7,22.4785]
[1727726883842,7.4206,155.75,155.71,7.70624659]
[1727726884048,1.0,155.75,155.71,1.28414659]
[1727726884243,1.0,155.75,155.72,6.4216]
[1727726884438,1.0,155.75,155.71,11.44792347]
[1727726884641,7.4205,155.75,155.71,6.422]
[1727726884950,1.0,155.75,155.72,6.4214]
[1727726886218,7.4208,155.75,155.71,6.422]
[1727726887022,6.4209,155.74,155.7,22.4785]
[1727726887239,6.4226,155.7,155.67,23.00473719]
[1727726887433,0.899638,155.74,155.67,23.00473719]
[1727726887434,6.4225,155.71,155.67,16.0589]
[1727726888347,23.776884,155.73,155.67,16.0589]
[1727726888663,23.776884,155.74,155.67,22.4827]
[1727726890238,6.4223,155.71,155.68,1.28451074]
[1727726895282,23.776884,155.74,155.68,1.28451074]
[1727726895584,6.4216,155.73,155.67,27.50682347]
[1727726896656,6.4219,155.72,155.67,27.50682347]
[1727726898158,6.4219,155.72,155.68,6.4233]
[1727726898370,17.0518,155.75,155.67,27.50682347]
[1727726898371,1.0,155.75,155.69,1.2843589]
[1727726898564,6.4212,155.74,155.7,6.4226]
[1727726898763,6.4212,155.74,155.7,7.7069169]
[1727726899170,6.4213,155.73,155.7,1.2843169]
[1727726899355,1.0,155.75,155.7,1.2843169]
[1727726899566,6.421,155.74,155.7,7.7068169]
[1727726899964,1.0,155.75,155.7,7.7068169]
[1727726900173,7.4206,155.75,155.7,7.7068169]
[1727726903493,7.4206,155.75,155.71,6.422]
[1727726909667,6.421,155.74,155.7,6.4224]
[1727726910488,1.0,155.75,155.69,16.0572]
[1727726910688,6.4209,155.74,155.7,6.4224]
[1727726913387,6.4216,155.73,155.69,22.4801]
[1727726914696,6.4216,155.73,155.7,1.28430984]
[1727726914997,6.4216,155.73,155.69,22.4801]
[1727726917504,1.899638,155.75,155.69,16.0572]
[1727726917505,6.4218,155.72,155.69,16.0572]
[1727726919181,1.0,155.75,155.69,16.0572]
[1727726919493,6.4215,155.73,155.69,22.4801]
[1727726919902,6.4215,155.73,155.7,1.28434639]
[1727726920886,1.0,155.75,155.7,1.28434639]
[1727726921380,7.4207,155.75,155.71,6.4218]
[1727726921802,1.0,155.75,155.7,1.28434639]
[1727726921986,6.421,155.74,155.7,7.70674639]
[1727726922191,6.421,155.74,155.71,6.4221]
[1727726922393,6.421,155.74,155.72,1.28419669]
[1727726922893,1.0,155.75,155.72,1.28419669]
[1727726923095,1.0,155.75,155.73,6.4212]
[1727726923298,1.0,155.75,155.74,1.28403261]
[1727726923884,1.0,155.75,155.74,6.4209]
[1727726924087,1.0,155.75,155.74,7.70480309]
[1727726924590,1.0,155.75,155.74,6.4209]
[1727726925286,1.0,155.75,155.73,27.50082347]
[1727726925287,1.0,155.75,155.73,33.92202347]
[1727726927204,1.0,155.75,155.73,22.4741]
[1727726930603,1.0,155.75,155.74,1.28393807]
[1727726930883,1.0,155.75,155.71,6.4221]
[1727726932415,1.0,155.75,155.72,1.28414062]
[1727726932789,1.0,155.75,155.72,7.70554062]
[1727726932985,1.0,155.75,155.73,6.4212]
[1727726933188,1.0,155.75,155.74,1.28399672]
[1727726941525,1.0,155.75,155.74,39.15263402]
[1727726942101,1.0,155.75,155.74,37.86882347]
[1727726942925,1.0,155.75,155.74,17.86882347]
[1727726943331,1.0,155.75,155.74,39.15254467]
[1727726943568,1.0,155.75,155.74,62.92942867]
[1727726943899,1.0,155.75,155.74,61.64570747]
[1727726944331,1.0,155.75,155.74,62.92913735]
[1727726944931,1.0,155.75,155.74,61.64570747]
[1727726945827,1.0,155.75,155.74,62.92925475]
[1727726948217,1.0,155.75,155.74,61.64570747]
[1727726950618,0.8476434,155.79,155.78,6.4193]
[1727726950935,0.8476434,155.79,155.78,62.92746516]
[1727726951115,0.8476434,155.79,155.78,69.30366516]
[1727726951322,0.8476434,155.79,155.78,68.02030747]
[1727726951523,6.4148,155.89,155.82,16.0436]
[1727726951730,6.4148,155.89,155.84,17.86462347]
[1727726952019,22.1061,155.9,155.85,7.69942036]
[1727726952243,22.1061,155.9,155.86,1.28304936]
[1727726952633,22.1061,155.9,155.85,6.4163]
[1727726953029,15.6917,155.9,155.87,6.4154]
[1727726953242,15.6917,155.9,155.88,6.4151]
[1727726954630,15.6917,155.9,155.87,6.4155]
[1727726954826,15.6917,155.9,155.88,1.28285211]
[1727726955048,0.3784796,155.93,155.88,12.73077558]
[1727726955242,0.3784796,155.93,155.92,11.44792347]
[1727726955539,0.3784796,155.93,155.92,12.73047707]
[1727726958145,0.3784796,155.93,155.92,1.2825536]
[1727726958343,0.3784796,155.93,155.9,6.4143]
[1727726958576,0.3784796,155.93,155.89,11.44792347]
[1727726958577,0.3784796,155.93,155.89,6.4146]
[1727726958741,0.3784796,155.93,155.88,16.0372]
[1727726958742,6.4136,155.92,155.88,16.0372]
[1727726958935,6.4141,155.91,155.85,27.48872347]
[1727726959252,6.4136,155.92,155.87,6.4154]
[1727726959541,6.4136,155.92,155.88,6.4151]
[1727726960528,0.3784796,155.93,155.88,6.4151]
[1727726960746,0.3784796,155.93,155.85,11.44792347]
[1727726960747,0.3784796,155.93,155.89,7.69729462]
[1727726961328,0.3784796,155.93,155.9,21.28258658]
[1727726961545,0.3784796,155.93,155.91,6.4138]
[1727726961731,0.3784796,155.93,155.9,6.4142]